bitfinex/quotes_ETHUSD_20210701
["timestamp","ask_amount","ask_price","bid_price","bid_amount"]
[1625151127541,0.12,2085.9,2085.8,0.02114121]
[1625151127644,2.12,2085.9,2085.8,0.02114121]
[1625151127841,2.12,2085.9,2085.3,0.02329863]
[1625151127842,21.75,2085.8,2085.3,0.02329863]
[1625151127969,3.5954422,2085.7,2085.3,0.02329863]
[1625151128214,0.04,2085.6,2085.3,0.02329863]
[1625151128318,7.23089,2085.6,2085.3,0.02329863]
[1625151128462,7.19089,2085.6,2085.3,0.02329863]
[1625151129167,33.3532,2085.5,2084.8,0.02551036]
[1625151129273,7.19266,2085.2,2084.8,0.02551036]
[1625151129916,10.78954,2085.2,2084.8,0.02551036]
[1625151130019,10.78954,2085.2,2084.3,0.0277516]
[1625151130020,28.0,2085.1,2084.3,0.0277516]
[1625151130217,0.1434665,2085.0,2084.3,0.0277516]
[1625151130311,4.9055665,2085.0,2084.3,0.0277516]
[1625151130515,12.0995565,2085.0,2084.3,0.0277516]
[1625151130710,11.95609,2085.0,2084.3,0.0277516]
[1625151131263,0.1,2084.9,2084.3,0.0277516]
[1625151131465,0.08,2084.8,2084.3,0.0277516]
[1625151131712,7.27398,2084.8,2084.3,0.0277516]
[1625151132471,7.19398,2084.8,2084.3,0.0277516]
[1625151132562,4.7621,2085.0,2084.3,0.0277516]
[1625151133115,7.19373,2084.8,2084.3,0.0277516]
[1625151133219,10.7910223,2084.8,2084.3,0.0277516]
[1625151133416,11.7643223,2084.8,2084.3,0.0277516]
[1625151133668,13.7643223,2084.8,2084.3,0.0277516]
[1625151133767,28.3,2084.7,2084.3,5.16e-05]
[1625151133871,28.3,2084.7,2083.8,0.02999473]
[1625151133872,21.55,2084.6,2083.8,0.02999473]
[1625151133969,2.8,2084.5,2083.8,0.02999473]
[1625151134068,0.15835085,2084.4,2083.8,0.02999473]
[1625151134169,7.1965,2084.2,2083.8,0.02999473]
[1625151135502,7.1965,2084.2,2083.8,9.473e-05]
[1625151135752,0.17624466,2084.1,2083.8,9.473e-05]
[1625151135955,0.24152224,2083.9,2082.8,0.01666929]
[1625151136054,4.86042224,2083.9,2082.8,0.01666929]
[1625151136254,0.03220973,2083.8,2082.8,0.01666929]
[1625151136351,0.1972188,2083.7,2082.8,0.01666929]
[1625151136704,0.16500907,2083.7,2082.8,0.01666929]
[1625151137433,3.70855641,2083.8,2082.8,0.01666929]
[1625151138486,2.65855641,2083.8,2082.8,0.01666929]
[1625151138591,2.53220973,2083.8,2082.8,2.62083571]
[1625151138692,0.03220973,2083.8,2082.8,11.98166439]
[1625151139575,0.03220973,2083.8,2082.9,7.1954]
[1625151139673,0.03220973,2083.8,2082.8,11.98166439]
[1625151139874,0.03220973,2083.8,2082.8,6.96666929]
[1625151140874,0.03220973,2083.8,2082.8,0.01666929]
[1625151141124,0.03625615,2083.7,2082.8,0.01666929]
[1625151142118,0.08,2083.6,2082.8,0.01666929]
[1625151142366,0.03625615,2083.7,2082.8,0.01666929]
[1625151143741,0.03625615,2083.7,2082.8,2.67533571]
[1625151143950,0.03625615,2083.7,2082.8,7.45203571]
[1625151144090,0.03625615,2083.7,2082.8,9.92236439]
[1625151144439,0.03625615,2083.7,2082.8,10.07236439]
[1625151144894,0.03220973,2083.8,2082.8,10.07236439]
[1625151144994,0.03220973,2083.8,2082.8,13.53236439]
[1625151145092,0.02999473,2084.3,2082.9,0.08]
[1625151145192,0.02999473,2084.3,2083.0,0.04581158]
[1625151145295,0.02999473,2084.3,2083.1,0.15]
[1625151145591,0.02999473,2084.3,2083.1,1.57520137]
[1625151145792,0.02999473,2084.3,2083.3,2.69087615]
[1625151145980,0.02999473,2084.3,2083.4,0.15]
[1625151146231,0.02999473,2084.3,2083.7,7.19295]
[1625151146481,14.3259442,2085.2,2083.8,31.4731]
[1625151146482,0.00774633,2084.8,2083.8,31.4731]
[1625151146577,0.03476815,2084.3,2083.8,31.4731]
[1625151147040,0.00774633,2084.8,2083.9,1.3164]
[1625151147041,0.03476815,2084.7,2083.9,1.3164]
[1625151148223,0.03476815,2084.7,2083.9,1.2993]
[1625151148479,0.03476815,2084.7,2083.9,8.49174]
[1625151148829,7.21046484,2085.3,2083.9,8.64174]
[1625151148932,7.21046484,2085.3,2084.4,1.1378]
[1625151149031,7.21046484,2085.3,2084.4,5.571]
[1625151150231,0.01802484,2085.3,2084.4,5.571]
[1625151151194,0.06,2085.2,2084.4,5.571]
[1625151151291,0.06,2085.2,2084.4,4.4332]
[1625151151391,0.01802484,2085.3,2084.4,4.4332]
[1625151151746,7.19261,2085.1,2084.4,4.4332]
[1625151152089,0.01802484,2085.3,2084.4,4.4332]
[1625151152739,7.19247,2085.1,2084.4,4.4332]
[1625151152928,0.01802484,2085.3,2084.4,4.4332]
[1625151153275,0.06,2085.2,2084.4,4.4332]
[1625151154326,0.06,2085.2,2084.3,1.175]
[1625151154426,0.01802484,2085.3,2083.9,9.58926]
[1625151155154,7.19344,2084.8,2083.9,9.58926]
[1625151155254,7.19344,2084.8,2083.8,3.62674473]
[1625151155560,0.10663961,2084.7,2083.8,0.02999473]
[1625151155756,0.14,2084.7,2083.8,0.02999473]
[1625151155957,0.29208183,2084.9,2083.8,0.02999473]
[1625151156055,0.47425917,2084.8,2083.8,0.02999473]
[1625151156159,0.15281672,2084.7,2083.8,0.02999473]
[1625151156305,0.30281672,2084.7,2083.8,0.02999473]
[1625151156458,3.9362,2084.6,2083.8,0.02999473]
[1625151156554,28.25,2084.5,2083.3,0.03220973]
[1625151156656,28.26039361,2084.5,2083.3,0.03220973]
[1625151156764,7.19699,2083.9,2083.3,0.03220973]
[1625151156858,10.45269,2083.9,2083.3,0.03220973]
[1625151157058,0.14,2083.8,2083.3,0.03220973]
[1625151157428,3.2557,2083.9,2083.4,17.9]
[1625151157728,3.2557,2083.9,2083.8,0.0277516]
[1625151157829,9.59598,2084.0,2083.8,0.0277516]
[1625151158079,12.14644,2083.9,2083.8,0.0277516]
[1625151158229,10.82544,2083.9,2083.8,0.0277516]
[1625151158983,16.1,2083.8,2082.8,23.32177929]
[1625151159142,16.1,2083.8,2082.2,9.59596]
[1625151159143,7.19797,2083.5,2082.2,9.59596]
[1625151159238,7.19797,2083.5,2081.5,8.60857827]
[1625151159239,32.21071434,2083.4,2082.0,13.39375]
[1625151159390,25.34436483,2083.3,2081.5,1.10277673]
[1625151159508,0.03642723,2082.8,2081.5,0.13953079]
[1625151159607,3.45679921,2082.7,2081.5,0.13953079]
[1625151159707,5.45679921,2082.7,2081.4,0.02237428]
[1625151160003,0.0383639,2082.3,2081.4,0.02237428]
[1625151160256,7.20221,2081.9,2081.4,0.02237428]
[1625151160351,10.80221,2081.9,2081.4,0.02237428]
[1625151160556,10.80221,2081.9,2080.8,6.90424864]
[1625151160656,17.25,2081.8,2080.8,6.90424864]
[1625151160854,0.04173193,2081.3,2080.7,11.0701]
[1625151161262,4.1465,2081.4,2080.5,21.95]
[1625151161405,7.20297,2081.2,2080.5,21.95]
[1625151161507,9.60338,2081.5,2080.5,21.95]
[1625151161770,0.04014243,2081.8,2080.9,15.0]
[1625151162162,0.04014243,2081.8,2080.8,4.36476852]
[1625151162463,7.24105243,2081.8,2080.8,4.36476852]
[1625151162566,7.24105243,2081.8,2080.8,0.04173193]
[1625151162665,25.85,2081.7,2080.5,21.89173193]
[1625151162764,0.04014243,2081.8,2080.6,0.15]
[1625151162919,0.04173193,2081.3,2080.6,7.1]
[1625151163416,0.04173193,2081.3,2080.6,22.1]
[1625151163716,0.04173193,2081.3,2080.6,7.1]
[1625151164478,0.04173193,2081.3,2080.6,0.15]
[1625151164576,0.04173193,2081.3,2080.6,15.15]
[1625151164878,0.04173193,2081.3,2080.6,0.15]
[1625151165229,7.24426193,2081.3,2080.6,0.15]
[1625151166943,7.23442193,2081.3,2080.6,0.15]
[1625151167799,4.85,2080.6,2080.4,0.1]
[1625151168399,3.1352,2080.7,2080.5,28.25]
[1625151168400,0.86431465,2080.7,2080.5,28.25]
[1625151168639,0.86431465,2080.7,2080.4,0.1]
[1625151171286,3.79534699,2080.9,2080.5,26.15]
[1625151172143,0.03189193,2081.3,2080.6,28.25]
[1625151172239,0.03189193,2081.3,2080.6,43.31]
[1625151172489,6.78672191,2081.6,2080.7,28.25]
[1625151172586,6.78672191,2081.6,2080.7,28.25786367]
[1625151172736,6.78672191,2081.6,2080.7,28.25]
[1625151173043,10.0615,2082.2,2080.7,43.25]
[1625151173151,12.005,2082.2,2080.8,0.18360786]
[1625151173240,12.005,2082.2,2080.8,0.15]
[1625151173344,12.005,2082.2,2080.8,0.21]
[1625151173492,4.243e-05,2081.8,2080.9,2.35141672]
[1625151173654,4.243e-05,2081.8,2081.0,15.04]
[1625151173744,4.243e-05,2081.8,2081.0,18.66634312]
[1625151173842,4.243e-05,2081.8,2081.1,0.18]
[1625151173940,4.243e-05,2081.8,2081.1,2.3296782]
[1625151174048,4.243e-05,2081.8,2081.2,15.15]
[1625151174143,4.243e-05,2081.8,2081.2,19.9978]
[1625151174344,4.243e-05,2081.8,2081.3,2.1896782]
[1625151174439,4.243e-05,2081.8,2081.4,15.0]
[1625151174644,4.243e-05,2081.8,2081.5,0.15]
[1625151175869,4.243e-05,2081.8,2081.4,2.0]
[1625151175966,4.07324243,2081.8,2081.4,2.0]
[1625151176269,4.07324243,2081.8,2080.9,2.0]
[1625151176516,11.27536243,2081.8,2080.9,2.0]
[1625151176813,11.26601243,2081.8,2080.9,2.0]
[1625151177642,11.26601243,2081.8,2080.8,10.44843193]
[1625151177889,11.25666243,2081.8,2080.8,12.79984865]
[1625151178192,11.25666243,2081.8,2080.8,14.94952685]
[1625151178590,11.25666243,2081.8,2080.8,14.89952685]
[1625151178894,4.05454243,2081.8,2080.8,29.89952685]
[1625151179341,4.05454243,2081.8,2080.9,0.15]
[1625151179591,4.05454243,2081.8,2081.3,0.04014243]
[1625151181108,7.20144,2082.1,2081.3,0.04014243]
[1625151181359,7.18144,2082.1,2081.3,0.04014243]
[1625151182088,28.25,2082.0,2080.8,10.18857436]
[1625151182144,7.20203,2081.8,2080.8,10.18857436]
[1625151182247,7.24217243,2081.8,2080.8,10.18857436]
[1625151182845,7.24217243,2081.8,2080.8,0.19173193]
[1625151184857,0.04014243,2081.8,2080.8,0.19173193]
[1625151186155,7.24217243,2081.8,2080.8,0.19173193]
[1625151186802,7.23136243,2081.8,2080.8,0.19173193]
[1625151187654,4.38345543,2081.8,2080.8,0.19173193]
[1625151187859,4.38345543,2081.8,2080.9,0.12]
[1625151188562,4.38345543,2081.8,2080.8,0.19173193]
[1625151188892,9.22015543,2081.8,2080.8,0.19173193]
[1625151188976,4.8367,2081.8,2080.8,0.19173193]
[1625151189778,4.8367,2081.8,2081.0,3.60101]
[1625151190027,0.04173193,2081.3,2081.1,0.04]
[1625151190329,7.20211,2081.6,2081.2,28.25]
[1625151190483,9.60278,2082.0,2081.0,8.01992672]
[1625151190580,9.60278,2082.0,2081.3,0.19014243]
[1625151190735,9.60278,2082.0,2081.3,4.28604243]
[1625151190880,3.6391667,2082.3,2081.3,4.28604243]
[1625151191560,7.20081,2082.0,2081.3,4.28604243]
[1625151192060,7.20081,2082.0,2081.3,7.88660243]
[1625151192460,0.0383639,2082.3,2081.3,7.88660243]
[1625151192559,7.2390439,2082.3,2081.3,15.08742243]
[1625151192664,7.2390439,2082.3,2081.4,15.0]
[1625151192816,0.03227842,2081.9,2081.3,8.63713735]
[1625151192914,0.03227842,2081.9,2081.4,0.12]
[1625151193011,0.03227842,2081.9,2081.5,0.15]
[1625151193162,7.22132232,2082.3,2081.5,0.35]
[1625151194002,7.22132232,2082.3,2081.6,3.60016]
[1625151194098,7.22132232,2082.3,2081.5,0.2]
[1625151194251,7.22132232,2082.3,2081.3,0.04014243]
[1625151194702,10.82215842,2082.3,2081.3,0.04014243]
[1625151195723,15.82135842,2082.3,2081.3,0.04014243]
[1625151198094,14.76005842,2082.3,2081.3,0.04014243]
[1625151200501,15.26505842,2082.3,2081.3,0.04014243]
[1625151200649,7.20385,2081.8,2081.3,0.04014243]
[1625151200749,0.11199788,2081.7,2081.3,0.04014243]
[1625151200953,0.9307,2081.9,2081.3,0.04014243]
[1625151202097,4.5326677,2081.9,2081.3,0.04014243]
[1625151202253,12.10628,2081.5,2081.3,0.04014243]
[1625151204822,12.05628,2081.5,2081.3,0.04014243]
[1625151205723,7.05632082,2081.5,2081.3,0.04014243]
[1625151205926,5.01552491,2081.5,2081.3,0.04014243]
[1625151209999,4.34618,2081.5,2081.3,3.64107243]
[1625151210099,21.76404232,2082.3,2081.3,3.64107243]
[1625151210246,0.52564232,2082.3,2081.4,0.21042663]
[1625151210494,0.52564232,2082.3,2081.5,0.2]
[1625151210744,0.52564232,2082.3,2081.6,3.60046]
[1625151210944,0.52564232,2082.3,2081.5,0.2]
[1625151211472,7.20046,2082.2,2081.5,0.2]
[1625151211675,0.52564232,2082.3,2081.8,3.60013]
[1625151211824,0.52564232,2082.3,2081.8,9.65553]
[1625151212579,7.19915,2082.1,2081.8,9.65553]
[1625151212830,7.18915,2082.1,2081.9,0.08]
[1625151214425,7.18915,2082.1,2082.0,23.79]
[1625151214577,4.34213338,2082.1,2082.0,23.79]
[1625151214878,0.52564232,2082.3,2082.0,23.79]
[1625151215127,0.52564232,2082.3,2082.1,0.2]
[1625151215679,0.02064232,2082.3,2082.1,0.2]
[1625151217036,0.02064232,2082.3,2081.9,0.15]
[1625151218204,7.21993232,2082.3,2081.9,0.15]
[1625151219258,0.02064232,2082.3,2081.9,0.15]
[1625151219457,0.02064232,2082.3,2082.0,0.06]
[1625151220786,0.02064232,2082.3,2081.9,0.15]
[1625151221540,0.02064232,2082.3,2081.9,0.1]
[1625151221743,0.02064232,2082.3,2081.9,6.63025351]
[1625151221990,0.02064232,2082.3,2082.1,7.1971]
[1625151222341,0.02064232,2082.3,2082.2,28.4]
[1625151223034,0.02064232,2082.3,2082.2,0.15]
[1625151223232,0.02064232,2082.3,2082.2,0.27]
[1625151224682,30.02064232,2082.3,2082.2,0.27]
[1625151229205,33.81134232,2082.3,2082.2,0.15]
[1625151229307,33.81134232,2082.3,2081.8,3.60013]
[1625151230603,41.01126232,2082.3,2081.8,3.60013]
[1625151230803,41.01126232,2082.3,2081.9,0.04]
[1625151231400,33.81134232,2082.3,2081.9,0.04]
[1625151232551,32.28466532,2082.3,2082.0,7.5107467]
[1625151232705,30.87802576,2082.3,2082.0,22.7107467]
[1625151232801,27.08732576,2082.3,2082.0,22.7107467]
[1625151232901,27.08732576,2082.3,2082.1,0.35]
[1625151233052,0.03642723,2082.8,2082.1,11.42725]
[1625151233149,0.03642723,2082.8,2082.4,3.59858]
[1625151233350,0.03642723,2082.8,2082.4,3.74858]
[1625151233453,0.03642723,2082.8,2082.5,0.2]
[1625151234011,7.23e-06,2082.8,2082.5,2.7107467]
[1625151234160,7.23e-06,2082.8,2082.7,22.19472]
[1625151234309,0.03220973,2083.8,2082.8,33.25]
[1625151234413,0.03220973,2083.8,2083.0,0.03360617]
[1625151234511,0.03220973,2083.8,2083.2,4.6934]
[1625151234604,0.03220973,2083.8,2083.2,9.0044]
[1625151234955,0.03220973,2083.8,2083.2,11.5151467]
[1625151235310,0.03220973,2083.8,2083.3,7.19375]
[1625151235607,0.03220973,2083.8,2083.4,0.14]
[1625151236006,0.03220973,2083.8,2083.5,4.7953]
[1625151237240,0.03220973,2083.8,2083.6,0.08]
[1625151237693,0.03220973,2083.8,2083.7,0.12]
[1625151240759,0.03220973,2083.8,2083.5,4.7953]
[1625151242177,7.22758973,2083.8,2083.1,0.15]
[1625151242324,7.33579207,2083.8,2082.8,4.79682]
[1625151242418,7.33579207,2083.8,2082.5,13.0742467]
[1625151242514,7.33579207,2083.8,2082.5,10.5635]
[1625151242667,7.33579207,2083.8,2082.6,2.0]
[1625151242818,7.34250546,2083.8,2082.4,10.4437]
[1625151243049,0.14712546,2083.8,2082.4,10.4437]
[1625151243139,0.14041207,2083.8,2082.4,10.4437]
[1625151243588,0.14041207,2083.8,2082.4,12.4437]
[1625151243688,0.14041207,2083.8,2082.4,10.4437]
[1625151244185,7.19806,2083.1,2082.4,10.4437]
[1625151244285,10.71516,2083.1,2082.4,10.4437]
[1625151245572,3.5171,2083.1,2082.4,10.4437]
[1625151245672,3.5171,2083.1,2082.5,0.12]
[1625151246225,3.5989777,2084.0,2082.5,0.12]
[1625151246328,22.52529,2084.2,2082.5,3.71815]
[1625151246424,22.52529,2084.2,2082.6,0.2]
[1625151246524,7.19651,2083.5,2082.7,7.19597]
[1625151247861,7.19651,2083.5,2082.5,18.10653657]
[1625151247964,10.72921,2083.5,2082.5,18.10653657]
[1625151248064,10.72921,2083.5,2082.5,6.06033654]
[1625151248464,10.72921,2083.5,2082.5,2.46218654]
[1625151249070,14.3282191,2083.5,2082.5,2.46218654]
[1625151249182,14.3282191,2083.5,2082.0,0.15]
[1625151249183,0.19686482,2083.4,2082.0,0.15]
[1625151249284,0.21243123,2083.4,2081.9,6.95]
[1625151249379,2.7,2083.2,2081.9,6.95]
[1625151249467,0.13383953,2083.1,2081.9,6.95]
[1625151249577,0.12337212,2083.2,2081.9,6.95]
[1625151250196,7.20094,2082.6,2081.9,6.95]
[1625151250293,11.45164,2082.6,2081.9,6.95]
[1625151251641,4.2507,2082.6,2081.9,6.95]
[1625151251750,9.59974,2083.3,2082.0,15.15]
[1625151251854,1.15653158,2083.4,2082.0,15.15]
[1625151251855,1.14957,2083.4,2082.0,15.15]
[1625151252043,1.02184,2083.5,2082.0,20.15]
[1625151252136,1.02184,2083.5,2082.1,5.21141692]
[1625151252345,1.02184,2083.5,2082.2,0.15]
[1625151252461,1.02184,2083.5,2082.4,3.5982]
[1625151252691,1.02184,2083.5,2082.8,0.03436483]
[1625151252900,7.1975,2083.4,2082.8,0.03436483]
[1625151254149,11.3058,2083.4,2082.8,0.03436483]
[1625151258875,4.1083,2083.4,2082.8,0.03436483]
[1625151259168,0.04658821,2083.4,2082.8,0.03436483]
[1625151259318,4.81808821,2083.4,2082.8,0.03436483]
[1625151259671,12.01558821,2083.4,2082.8,0.03436483]
[1625151261974,4.81808821,2083.4,2082.8,0.03436483]
[1625151262076,0.04658821,2083.4,2082.8,7.58370677]
[1625151262226,1.02184,2083.5,2082.8,17.49165272]
[1625151262325,1.02184,2083.5,2082.9,0.2]
[1625151263569,0.03220973,2083.8,2082.9,0.2]
[1625151263768,0.03220973,2083.8,2083.0,0.18]
[1625151264220,0.03220973,2083.8,2083.0,7.37581]
[1625151264319,0.03220973,2083.8,2083.0,9.98035194]
[1625151264518,0.03220973,2083.8,2083.1,0.14]
[1625151265813,0.03220973,2083.8,2083.0,9.80014194]
[1625151271322,7.21005912,2083.9,2083.1,28.25]
[1625151271473,7.21005912,2083.9,2083.2,0.10815701]
[1625151271572,7.21005912,2083.9,2083.2,0.18815701]
[1625151271671,7.21005912,2083.9,2083.2,0.08]
[1625151272324,7.21005912,2083.9,2083.3,0.03220973]
[1625151272681,7.21005912,2083.9,2083.3,7.22721973]
[1625151272783,0.01445912,2083.9,2083.3,7.22721973]
[1625151272885,0.01445912,2083.9,2083.3,10.39171973]
[1625151272986,0.01445912,2083.9,2083.3,10.54171973]
[1625151273082,0.01445912,2083.9,2083.4,0.2]
[1625151274183,0.01445912,2083.9,2083.6,7.1932]
[1625151274584,0.01445912,2083.9,2083.5,0.06]
[1625151275289,0.01445912,2083.9,2083.3,0.03220973]
[1625151275290,6.32765912,2083.9,2083.3,0.03220973]
[1625151276929,7.1966,2083.6,2083.3,0.03220973]
[1625151278783,7.1966,2083.6,2083.3,1.00172458]
[1625151279100,8.99284001,2084.7,2084.6,0.25035077]
[1625151279198,7.2203216,2084.8,2084.6,28.50035077]
[1625151279291,7.2203216,2084.8,2084.6,28.99194131]
[1625151279292,1.6e-06,2084.8,2084.6,28.99194131]
[1625151279397,0.01802484,2085.3,2084.7,15.2]
[1625151279501,0.01802484,2085.3,2084.8,0.34159054]
[1625151279592,0.01802484,2085.3,2085.2,3.46]
[1625151279693,0.12883085,2085.4,2085.2,51.52209054]
[1625151279694,5.69e-06,2085.4,2085.2,51.52209054]
[1625151279840,5.69e-06,2085.4,2085.3,3.46]
[1625151279948,8.63e-06,2085.8,2085.3,18.80159054]
[1625151280043,0.02114121,2086.3,2085.3,15.69159054]
[1625151280142,0.02114121,2086.3,2085.7,3.46]
[1625151280247,2.9e-06,2086.6,2086.2,7.18439]
[1625151280347,22.09139072,2087.9,2086.3,4.56099054]
[1625151280444,0.26069072,2087.9,2086.3,4.56099054]
[1625151280543,9.64e-06,2086.8,2086.4,3.61]
[1625151280646,9.64e-06,2086.8,2086.5,0.34159054]
[1625151280741,9.64e-06,2086.8,2086.7,3.46]
[1625151280896,9.64e-06,2086.8,2086.7,3.80159054]
[1625151280993,9.64e-06,2086.8,2086.7,3.95159054]
[1625151281096,9.64e-06,2086.8,2086.7,0.55159054]
[1625151282255,9.64e-06,2086.8,2086.7,0.49159054]
[1625151282357,9.64e-06,2086.8,2086.7,0.15]
[1625151282459,9.64e-06,2086.8,2086.3,0.95000262]
[1625151282460,9.64e-06,2086.8,2086.3,1.10000262]
[1625151283617,9.64e-06,2086.8,2086.4,7.18476]
[1625151283813,9.64e-06,2086.8,2086.5,0.35]
[1625151284763,9.64e-06,2086.8,2086.5,0.15]
[1625151286502,9.64e-06,2086.8,2086.3,0.95000262]
[1625151286693,4.06160964,2086.8,2086.3,0.95000262]
[1625151288196,4.06160964,2086.8,2086.4,0.15]
[1625151288447,9.64e-06,2086.8,2086.4,0.15]
[1625151288547,9.64e-06,2086.8,2086.5,7.18435]
[1625151288694,9.64e-06,2086.8,2086.5,7.38435]
[1625151288794,9.64e-06,2086.8,2086.6,0.15]
[1625151288894,9.64e-06,2086.8,2086.6,4.55977019]
[1625151289095,9.64e-06,2086.8,2086.7,0.2]
[1625151289194,9.64e-06,2086.8,2086.7,3.66]
[1625151289297,9.64e-06,2086.8,2086.7,6.89245124]
[1625151290145,9.64e-06,2086.8,2086.7,16.46868124]
[1625151290848,9.64e-06,2086.8,2086.7,18.46868124]
[1625151291453,9.64e-06,2086.8,2086.7,33.46868124]
[1625151291552,9.64e-06,2086.8,2086.7,35.71985283]
[1625151291656,9.64e-06,2086.8,2086.7,36.88205283]
[1625151291906,0.88278641,2088.0,2086.8,28.25]
[1625151292054,0.88278641,2088.0,2087.9,22.86]
[1625151292152,0.88278641,2088.0,2087.9,26.1485]
[1625151292304,0.88278641,2088.0,2087.9,6.8985]
[1625151293025,0.88278641,2088.0,2087.9,14.07701]
[1625151293222,0.88278641,2088.0,2087.9,9.21705081]
[1625151293420,0.88278641,2088.0,2087.9,12.17446755]
[1625151293620,0.88278641,2088.0,2087.9,13.17146755]
[1625151294672,0.88278641,2088.0,2087.9,11.17146755]
[1625151295855,0.88278641,2088.0,2087.9,3.99295755]
[1625151295959,0.88278641,2088.0,2087.9,2.99595755]
[1625151296057,0.88278641,2088.0,2087.9,1.24741674]
[1625151296307,0.88278641,2088.0,2087.9,1.10741674]
[1625151296705,0.88278641,2088.0,2087.9,0.15]
[1625151297504,0.88278641,2088.0,2087.3,0.97738827]
[1625151297652,0.88278641,2088.0,2087.4,0.15]
[1625151298101,21.15,2087.9,2087.3,0.97738827]
[1625151298250,21.15,2087.9,2087.4,0.15]
[1625151298750,0.88278641,2088.0,2087.4,0.15]
[1625151299749,0.88278641,2088.0,2087.5,7.18103]
[1625151299948,0.88278641,2088.0,2087.3,0.97738827]
[1625151300050,0.88278641,2088.0,2087.5,0.15]
[1625151300856,0.88278641,2088.0,2087.6,0.08]
[1625151301053,0.88278641,2088.0,2087.7,0.15]
[1625151301853,0.88278641,2088.0,2087.3,0.97738827]
[1625151302655,0.88278641,2088.0,2087.4,0.15]
[1625151303761,0.88278641,2088.0,2087.5,0.06]
[1625151303955,0.0134333,2088.3,2087.6,28.25]
[1625151304040,0.0134333,2088.3,2087.6,28.4]
[1625151304293,0.0134333,2088.3,2087.9,7.17908]
[1625151304387,0.0134333,2088.3,2087.9,8.1487578]
[1625151304488,0.0134333,2088.3,2088.0,3.7489]
[1625151304590,0.0134333,2088.3,2088.0,3.9489]
[1625151304703,7.17882,2089.7,2088.1,22.0]
[1625151304704,7.16340277,2089.7,2088.1,22.0]
[1625151304806,7.16340277,2089.7,2088.2,0.16820585]
[1625151304897,7.16340277,2089.7,2088.2,0.31820585]
[1625151305645,2.0,2089.7,2088.2,0.31820585]
[1625151305754,2.0,2089.7,2088.3,0.16]
[1625151305841,2.0,2089.7,2088.4,0.09054043]
[1625151305990,2.0,2089.7,2088.4,0.24054043]
[1625151306687,0.00893143,2089.8,2088.4,0.24054043]
[1625151306900,0.00893143,2089.8,2088.5,0.06]
[1625151307040,0.00893143,2089.8,2088.6,4.87912829]
[1625151307143,0.00893143,2089.8,2088.7,7.1768]
[1625151307242,0.00893143,2089.8,2088.7,7.2168]
[1625151307342,0.00893143,2089.8,2088.8,0.02599451]
[1625151307846,28.25,2089.7,2088.8,0.0103052]
[1625151307951,28.25,2089.7,2088.7,7.3668]
[1625151308243,28.25,2089.7,2088.7,7.3268]
[1625151308487,28.25,2089.7,2088.7,0.15]
[1625151308789,0.00893143,2089.8,2088.8,3.70889965]
[1625151309389,0.0124256,2089.3,2088.8,3.70889965]
[1625151309592,0.03559837,2089.3,2088.8,3.70889965]
[1625151309741,0.02317277,2089.3,2088.8,10.88535965]
[1625151309889,0.02317277,2089.0,2088.9,14.75]
[1625151310142,1.02711697,2089.8,2089.0,15.85]
[1625151310241,1.02711697,2089.8,2088.9,0.1]
[1625151310343,1.02711697,2089.8,2088.8,3.70889965]
[1625151310730,1.02711697,2089.8,2088.8,10.88612965]
[1625151311074,1.06615745,2089.8,2088.9,0.21]
[1625151311678,1.06615745,2089.8,2088.9,3.79745]
[1625151312730,1.06615745,2089.8,2089.2,7.1758]
[1625151313048,1.06615745,2089.8,2089.2,4.33673426]
[1625151313153,1.06615745,2089.8,2089.3,0.15]
[1625151314001,1.06615745,2089.8,2089.3,0.1]
[1625151316194,1.06615745,2089.8,2089.4,7.2745]
[1625151316493,1.06615745,2089.8,2089.4,7.1745]
[1625151316596,1.06615745,2089.8,2089.3,0.1]
[1625151318081,1.06615745,2089.8,2089.3,0.05]
[1625151318333,1.06615745,2089.8,2089.3,7.22494]
[1625151318531,1.06615745,2089.8,2089.4,0.08]
[1625151318935,1.06615745,2089.8,2089.3,7.22494]
[1625151320538,8.15325745,2089.8,2089.3,7.22494]
[1625151320645,8.15325745,2089.8,2088.9,9.56543]
[1625151320737,8.15325745,2089.8,2088.6,9.56827]
[1625151320832,0.14817824,2089.7,2088.6,9.56827]
[1625151321233,0.14817824,2089.7,2088.7,7.17704]
[1625151321234,7.17764,2089.6,2088.7,7.17704]
[1625151321384,0.14817824,2089.7,2088.6,9.56827]
[1625151321482,0.11487569,2089.7,2088.6,9.56827]
[1625151321734,0.11487569,2089.7,2088.5,11.70769791]
[1625151322432,0.11487569,2089.7,2088.5,11.55769791]
[1625151322535,6.96878745,2089.8,2088.8,0.16029965]
[1625151322886,5.51678745,2089.8,2088.8,7.33650965]
[1625151322988,1.06615745,2089.8,2088.8,7.33650965]
[1625151323090,1.06615745,2089.8,2088.9,0.2]
[1625151323240,1.06615745,2089.8,2089.0,0.2]
[1625151323336,1.06615745,2089.8,2089.0,0.35]
[1625151323436,1.06615745,2089.8,2089.0,0.15]
[1625151324089,7.17672,2089.6,2089.0,0.15]
[1625151324584,4.73225,2089.7,2089.0,0.15]
[1625151324685,3.58825,2089.7,2089.0,3.8232]
[1625151324984,1.06615745,2089.8,2089.0,3.8232]
[1625151325338,1.06615745,2089.8,2089.1,7.17532]
[1625151325436,1.06615745,2089.8,2089.1,0.9518886]
[1625151325535,1.06615745,2089.8,2089.2,0.15]
[1625151325887,4.65442745,2089.8,2089.1,0.9518886]
[1625151325991,9.92322745,2089.8,2088.8,0.01029965]
[1625151326091,11.17102745,2089.8,2088.8,0.01029965]
[1625151326288,7.17816,2089.3,2088.8,0.01029965]
[1625151326388,3.58948,2089.2,2088.8,0.01029965]
[1625151326487,9.57149,2089.4,2088.8,0.01029965]
[1625151326588,1.3397,2089.5,2088.8,0.01029965]
[1625151326740,2.0,2089.5,2088.8,0.01029965]
[1625151327741,2.49875745,2089.8,2088.9,0.06]
[1625151327937,1.06615745,2089.8,2089.0,0.15]
[1625151328187,1.06615745,2089.8,2089.1,0.04]
[1625151328290,17.4,2089.7,2088.9,3.46]
[1625151328389,1.06615745,2089.8,2089.2,0.27]
[1625151328639,1.06615745,2089.8,2089.2,0.15]
[1625151329132,1.06615745,2089.8,2089.3,7.17436]
[1625151329233,0.81615745,2089.8,2089.3,7.17436]